bitfinex-derivatives/quotes_ETHF0:USTF0_20240927
["timestamp","ask_amount","ask_price","bid_price","bid_amount"]
[1727453098086,0.37197,2687.5,2687.4,0.37196]
[1727453098493,0.77327,2687.5,2687.4,0.37196]
[1727453101084,0.37199,2687.4,2687.3,0.37197]
[1727453101389,0.37202,2687.1,2687.0,0.372]
[1727453101693,3.2078,2687.3,2687.2,1.30201]
[1727453101888,4.128,2687.8,2687.4,0.92994]
[1727453102195,5.43244316,2688.1,2688.0,0.37189]
[1727453102495,3.2078,2688.1,2688.0,0.37189]
[1727453102794,3.2078,2688.1,2688.0,1.30162]
[1727453102992,2.60457316,2688.5,2688.4,0.37183]
[1727453103198,2.60457316,2688.5,2688.0,1.32033]
[1727453103199,0.37184,2688.4,2688.3,0.37184]
[1727453103396,0.37186,2688.2,2688.1,0.37186]
[1727453103594,0.37185,2688.3,2688.2,0.37185]
[1727453103795,0.37184,2688.4,2688.3,0.37183]
[1727453105099,0.75163,2688.5,2688.4,0.37183]
[1727453105291,0.37184,2688.4,2688.3,0.37184]
[1727453105492,0.37183,2688.5,2688.4,0.37183]
[1727453106195,3.2078,2688.6,2688.4,0.37182]
[1727453106394,1.45704316,2688.7,2688.6,0.37181]
[1727453106395,0.3718,2688.7,2688.6,0.37181]
[1727453106596,0.74089,2688.8,2688.7,0.37179]
[1727453107097,3.2078,2688.8,2688.7,0.37179]
[1727453107294,3.2078,2689.1,2689.0,0.37175]
[1727453107494,0.37174,2689.1,2689.0,0.37175]
[1727453107803,0.74083,2689.2,2689.0,0.37175]
[1727453107996,3.2078,2689.1,2688.9,0.37176]
[1727453108201,0.37176,2689.0,2688.8,0.37177]
[1727453108403,3.2078,2689.1,2689.0,0.37175]
[1727453109299,3.57954,2689.1,2689.0,0.37175]
[1727453109501,3.2078,2689.1,2689.0,0.37175]
[1727453110401,0.37172,2689.2,2689.1,0.37173]
[1727453110594,0.47172,2689.3,2689.1,0.37173]
[1727453110896,0.1,2689.3,2688.7,3.83947]
[1727453111089,0.47172,2689.3,2689.1,0.37173]
[1727453111289,0.1,2689.3,2689.2,0.37172]
[1727453112993,0.37172,2689.2,2689.1,0.37174]
[1727453113200,0.86062,2689.3,2689.1,0.37174]
[1727453113798,0.37172,2689.2,2689.1,0.37174]
[1727453114305,0.86061,2689.3,2689.2,0.37172]
[1727453115505,0.37172,2689.2,2689.1,0.37173]
[1727453115803,0.4889,2689.3,2689.2,0.37172]
[1727453115804,0.86061,2689.3,2689.2,0.37172]
[1727453116004,0.1,2689.3,2689.2,0.37172]
[1727453119007,0.47171,2689.3,2689.2,0.37172]
[1727453119607,0.37173,2689.2,2689.1,0.37173]
[1727453120005,0.47171,2689.3,2689.2,0.37172]
[1727453121211,0.37174,2689.2,2689.1,0.37173]
[1727453121506,0.1,2689.3,2688.6,4.13731]
[1727453121707,0.37173,2689.2,2689.1,0.37173]
[1727453122008,0.47172,2689.3,2689.2,0.37172]
[1727453122510,0.1,2689.3,2689.2,7.92943]
[1727453122810,0.1,2689.3,2689.2,9.24054]
[1727453123007,0.1,2689.3,2689.2,9.62024]
[1727453123204,0.1,2689.3,2689.2,15.62024]
[1727453123405,3.2078,2689.9,2689.8,0.37164]
[1727453123612,3.2078,2689.9,2689.8,3.28164]
[1727453126110,9.8354,2689.9,2689.2,3.2352]
[1727453126306,3.2078,2689.6,2689.3,0.385]
[1727453126502,3.2078,2689.6,2689.5,0.37168]
[1727453126704,3.2078,2689.9,2689.8,0.37164]
[1727453128811,3.57943,2689.9,2689.7,3.28164]
[1727453129011,3.57943,2689.9,2689.8,0.7778]
[1727453129219,3.57943,2689.9,2689.8,0.3928]
[1727453129416,3.2078,2689.9,2689.8,0.76444]
[1727453129915,3.2078,2689.9,2689.6,0.4064]
[1727453130214,0.37168,2689.5,2689.4,0.377]
[1727453130413,3.2078,2689.6,2689.2,0.79532]
[1727453130720,0.37171,2689.3,2689.2,0.4236]
[1727453130916,0.3717,2689.4,2689.2,0.4236]
[1727453131117,5.33528,2689.6,2689.2,0.4236]
[1727453131321,0.37171,2689.3,2689.2,0.79532]
[1727453132416,0.37171,2689.4,2689.2,0.79532]
[1727453132625,0.37171,2689.3,2689.2,0.79532]
[1727453133419,0.3717,2689.4,2689.3,0.3717]
[1727453134121,4.38658,2689.6,2689.5,0.37168]
[1727453134313,3.6168,2689.6,2689.5,0.37168]
[1727453134623,1.29868,2689.9,2689.3,2.91]
[1727453134624,0.37165,2689.8,2689.7,0.37165]
[1727453135025,3.57943,2689.9,2689.8,0.37164]
[1727453135324,3.2078,2689.9,2689.8,0.37164]
[1727453136422,3.57943,2689.9,2689.8,0.37164]
[1727453136825,3.2078,2689.9,2689.8,0.37164]
[1727453137024,3.57943,2689.9,2689.8,0.37164]
[1727453137425,3.2078,2689.9,2689.8,0.37164]
[1727453137621,3.9572,2690.2,2690.1,0.3716]
[1727453138823,4.32879,2690.2,2690.0,3.2816]
[1727453139026,4.32879,2690.2,2690.1,0.3716]
[1727453139219,0.3716,2690.1,2689.9,0.37162]
[1727453139420,0.37161,2690.0,2689.8,0.37163]
[1727453139728,0.37164,2689.8,2689.6,0.3898]
[1727453139925,0.37165,2689.8,2689.6,0.3898]
[1727453140120,0.37165,2689.8,2689.6,0.76146]
[1727453140121,0.3917,2689.7,2689.6,0.76146]
[1727453142833,0.3875,2689.8,2689.7,0.37165]
[1727453143133,3.57943,2689.9,2689.8,0.37164]
[1727453143825,3.2078,2689.9,2689.6,0.3898]
[1727453144137,0.37164,2689.8,2689.7,0.37165]
[1727453144427,3.57943,2689.9,2689.8,0.37164]
[1727453145237,0.37163,2689.9,2689.8,0.37164]
[1727453145836,0.75092,2690.0,2689.9,0.37163]
[1727453146039,0.3793,2690.0,2689.9,0.37163]
[1727453146536,0.75091,2690.0,2689.9,0.37163]
[1727453146739,0.3793,2690.0,2689.9,0.37163]
[1727453147032,0.3716,2690.1,2689.8,0.9291]
[1727453147234,0.3716,2690.1,2690.0,0.37161]
[1727453148940,3.98759,2690.2,2690.1,0.3716]
[1727453149140,3.57939,2690.2,2690.1,0.3716]
[1727453150138,3.2078,2690.2,2690.1,0.3716]
[1727453150538,3.2078,2690.2,2690.1,4.0892]
[1727453150836,2.87211369,2690.7,2690.6,0.37153]
[1727453150837,4.34812,2690.7,2690.6,0.37153]
[1727453151037,4.34812,2690.7,2690.6,3.28153]
[1727453151038,3.9766,2690.7,2690.6,3.28153]
[1727453151240,3.4336338,2690.9,2690.7,0.37151]
[1727453151442,0.37151,2690.8,2690.7,0.37151]
[1727453151631,0.397,2690.9,2690.8,0.3715]
[1727453152037,0.37151,2690.8,2690.7,0.37151]
[1727453152727,0.37154,2690.6,2690.5,0.37154]
[1727453153835,0.37154,2690.5,2690.4,1.16115]
[1727453154036,0.37157,2690.4,2690.3,0.37156]
[1727453154237,0.74457,2690.4,2690.3,0.37156]
[1727453154432,0.37161,2690.0,2689.9,3.28162]
[1727453154637,0.37161,2690.1,2690.0,0.37161]
[1727453154835,0.37161,2690.0,2689.9,3.28162]
[1727453155134,0.37161,2690.0,2689.9,2.91]
[1727453155341,0.37161,2690.0,2689.9,0.37161]
[1727453155342,0.37162,2690.0,2689.9,0.37161]
[1727453155840,0.37164,2689.9,2689.8,0.37163]
[1727453156831,1.29841,2690.1,2689.7,3.6648]
[1727453156832,0.37162,2690.0,2689.9,0.37161]
[1727453157032,0.3694,2690.1,2690.0,0.37161]
[1727453157237,0.37159,2690.2,2690.1,0.37159]
[1727453157540,0.37162,2690.0,2689.9,0.37161]
[1727453157934,0.37164,2689.9,2689.8,0.37163]
[1727453158242,0.7723,2689.9,2689.7,0.37165]
[1727453158540,1.14393,2689.9,2689.7,0.37165]
[1727453158740,1.14393,2689.9,2689.8,0.37164]
[1727453160339,0.37164,2689.8,2689.7,3.28164]
[1727453160645,0.37164,2689.8,2689.7,0.37164]
[1727453161031,1.14393,2689.9,2689.8,0.37164]
[1727453161344,4.35173,2689.9,2689.8,0.37164]
[1727453161537,0.37164,2689.8,2689.7,0.37164]
[1727453161940,0.37164,2689.8,2689.5,3.299]
[1727453161941,4.35173,2689.9,2689.8,0.37164]
[1727453162536,0.37165,2689.8,2689.7,0.37165]
[1727453163327,4.35173,2689.9,2689.8,0.37164]
[1727453165040,3.57943,2689.9,2689.8,0.37164]
[1727453165745,3.2078,2689.9,2689.5,3.299]
[1727453165949,3.2078,2689.9,2689.8,0.37164]
[1727453165950,3.57943,2689.9,2689.8,0.37164]
[1727453166334,3.2078,2689.9,2689.8,0.37164]
[1727453167039,3.2078,2689.9,2689.7,2.91]
[1727453167040,0.37163,2689.9,2689.7,2.91]
[1727453167239,0.37162,2690.0,2689.7,2.91]
[1727453167440,3.2078,2689.8,2689.7,3.28165]
[1727453167839,3.2078,2689.8,2689.7,6.99925]
[1727453170247,1.45704316,2690.1,2690.0,0.37161]
[1727453170437,5.03643316,2690.2,2690.1,0.3716]
[1727453170639,3.57939,2690.2,2690.1,0.3716]
[1727453170851,3.2078,2690.2,2690.1,0.3716]
[1727453171041,3.57938,2690.2,2690.1,0.3716]
[1727453171238,4.66484316,2690.2,2690.1,0.3716]
[1727453171446,3.57938,2690.2,2690.1,0.3716]
[1727453171843,3.2078,2690.2,2690.1,0.3716]
[1727453172345,0.37156,2690.4,2690.3,0.37157]
[1727453172650,3.2078,2690.4,2690.3,0.37157]
[1727453172838,3.57936,2690.4,2690.2,2.91]
[1727453173045,3.57936,2690.4,2690.2,3.28157]
[1727453173241,3.57936,2690.4,2690.3,0.37157]
[1727453173437,3.57936,2690.4,2690.3,0.78107]
[1727453173946,3.2078,2690.4,2690.3,0.78107]
[1727453174539,3.2078,2690.4,2690.3,1.15967]
[1727453175446,3.2078,2690.4,2690.3,0.78107]
[1727453178138,0.37155,2690.5,2690.4,0.37156]
[1727453179552,0.37154,2690.6,2690.5,0.37154]
[1727453180760,0.37155,2690.5,2690.4,0.37155]
[1727453180969,0.37154,2690.6,2690.5,0.37154]
[1727453181251,0.37155,2690.5,2690.4,0.37155]
[1727453181954,0.37159,2690.3,2690.2,0.37158]
[1727453182352,0.3716,2690.2,2690.1,0.37159]
[1727453183255,0.37158,2690.3,2690.2,0.37158]
[1727453185060,0.3716,2690.1,2690.0,0.3959]
[1727453185262,3.5794,2690.1,2690.0,0.3959]
[1727453185766,3.5794,2690.1,2688.9,1.9588]
[1727453185767,0.92904,2690.0,2689.5,0.97440249]
[1727453186064,0.37172,2689.2,2689.1,1.71493249]
[1727453186261,3.57952,2689.2,2689.1,0.3688]
[1727453186859,3.57952,2689.2,2689.1,0.74054]
[1727453187054,3.57952,2689.2,2689.1,0.3688]
[1727453187256,3.57952,2689.2,2689.1,0.74054]
[1727453187662,3.2078,2689.2,2689.0,0.37174]
[1727453187858,3.57953,2689.2,2689.0,0.37174]
[1727453188059,3.57953,2689.2,2689.1,0.37174]
[1727453188362,3.57953,2689.2,2689.0,0.37174]
[1727453188560,3.57953,2689.2,2689.1,0.37174]
[1727453189159,3.57953,2689.2,2689.0,0.37174]
[1727453189863,3.57953,2689.2,2689.1,0.37174]
[1727453190455,3.2078,2689.2,2689.1,0.37174]
[1727453190852,3.57952,2689.2,2689.0,0.37174]
[1727453192356,0.37174,2689.1,2689.0,0.37174]
[1727453192557,0.37174,2689.1,2688.9,0.3834]
[1727453192759,0.37181,2688.6,2688.4,1.34622249]
[1727453193067,3.6065,2688.5,2688.4,0.37182]
[1727453195960,3.2078,2688.5,2688.4,0.37182]
[1727453196164,3.2078,2688.8,2688.7,0.37179]
[1727453196367,0.75077,2688.9,2688.8,0.37178]
[1727453196757,0.75077,2688.9,2688.7,0.37178]
[1727453197164,0.75077,2688.9,2688.8,0.37178]
[1727453198765,0.379,2688.9,2688.8,0.37178]
[1727453199769,3.2078,2689.1,2689.0,0.37175]
[1727453200077,3.2078,2689.1,2689.0,3.28175]
[1727453200871,3.57954,2689.1,2688.9,0.37176]
[1727453201065,0.92927,2689.4,2689.0,0.37175]
[1727453201066,0.37174,2689.2,2689.0,0.37175]
[1727453201269,3.2078,2689.1,2689.0,0.37175]
[1727453202167,3.2078,2689.4,2689.3,0.37171]
[1727453202364,3.2078,2689.4,2689.3,4.21099]
[1727453202569,3.2078,2689.4,2689.3,7.92939]
[1727453203459,3.2938,2690.0,2689.9,0.37163]
[1727453203666,3.2078,2690.0,2689.9,0.37163]
[1727453203970,3.57941,2690.0,2689.9,0.37163]
[1727453204366,0.37163,2689.9,2689.8,1.17943]
[1727453204969,0.37163,2689.9,2689.8,0.37163]
[1727453205165,3.57942,2690.0,2689.8,0.37163]
[1727453205575,3.57942,2690.0,2689.9,0.37163]
[1727453205771,0.37164,2689.8,2689.7,0.37165]
[1727453206071,0.37166,2689.7,2689.6,0.37166]
[1727453206372,3.2078,2689.7,2689.6,0.37166]
[1727453207463,3.2078,2690.0,2689.9,0.37163]
[1727453209371,3.57941,2690.0,2689.9,0.37163]
[1727453209969,3.2078,2690.0,2689.9,0.37163]
[1727453210877,3.2078,2690.0,2689.9,3.28163]
[1727453211072,3.2078,2690.0,2689.9,4.2107]
[1727453211875,3.2078,2690.0,2689.9,3.28163]
[1727453212270,3.2078,2690.0,2689.9,0.37163]
[1727453213987,0.086,2690.8,2690.7,0.37152]
[1727453214175,2.42942332,2691.3,2690.7,0.37152]
[1727453214176,0.8093,2691.8,2691.2,0.37144]
[1727453214476,0.8093,2691.8,2691.0,2.91]
[1727453214673,3.2078,2691.6,2691.4,0.37141]
[1727453214974,3.2078,2691.6,2691.0,6.1178]
[1727453214975,3.2078,2691.6,2691.3,0.37142]
[1727453215175,3.2078,2691.6,2691.4,0.37142]
[1727453215372,0.37139,2691.7,2691.4,0.37142]
[1727453215572,4.08659,2691.7,2691.0,6.1178]
[1727453215775,0.8093,2691.8,2691.0,6.1178]
[1727453215979,3.2078,2691.7,2691.4,0.37141]
[1727453216377,3.2078,2691.7,2691.5,0.3714]
[1727453216778,3.7152,2691.6,2691.5,0.3714]
[1727453216978,3.7152,2691.7,2691.5,0.3714]
[1727453217375,3.7152,2691.6,2691.5,0.3714]
[1727453217581,3.7152,2691.7,2691.5,0.3714]
[1727453217982,3.7152,2691.6,2691.5,0.3714]
[1727453218177,3.7152,2691.7,2691.5,0.3714]
[1727453218585,3.7152,2691.6,2691.5,0.3714]
[1727453218885,3.7152,2691.7,2691.5,0.3714]
[1727453219281,3.7152,2691.7,2691.6,3.28139]
[1727453219875,3.2078,2692.4,2691.6,6.6252]
[1727453220080,3.2078,2692.4,2692.2,2.91]
[1727453220081,1.1178,2692.3,2692.2,2.91]
[1727453220483,4.8322,2692.3,2692.2,2.91]
[1727453220981,10.8322,2692.3,2692.2,2.91]
[1727453221181,4.8322,2692.3,2692.2,2.91]
[1727453221493,0.37131,2692.2,2692.0,2.91]
[1727453221682,1.1178,2692.3,2692.0,3.28134]
[1727453221880,0.7465,2692.3,2692.1,0.37132]
[1727453222278,3.7144,2692.2,2692.1,0.37132]
[1727453224183,0.7465,2692.3,2692.2,0.37131]
[1727453224184,0.3754,2692.3,2692.2,0.37131]
[1727453224381,0.76335,2692.7,2692.5,0.37126]
[1727453224688,1.15745,2692.7,2692.4,0.37127]
[1727453224983,0.37127,2692.5,2692.3,0.37129]
[1727453225188,0.7862,2692.7,2692.2,2.91]
[1727453225374,0.37127,2692.5,2692.3,0.37129]
[1727453225574,0.7862,2692.7,2692.2,3.2813]
[1727453225779,0.37129,2692.4,2692.2,3.2813]
[1727453226183,0.37129,2692.4,2692.3,0.37129]
[1727453226383,3.7144,2692.3,2692.0,2.91]
[1727453226584,0.92816,2692.6,2692.0,2.91]
[1727453226783,0.37128,2692.5,2692.3,0.37129]
[1727453226991,0.37128,2692.4,2692.2,0.3713]
[1727453227183,0.92818,2692.5,2692.1,0.37132]
[1727453227385,0.37131,2692.3,2692.1,0.37132]
[1727453227581,0.92818,2692.5,2692.1,0.37132]
[1727453227582,0.37131,2692.2,2692.1,0.37132]
[1727453227779,0.7862,2692.7,2692.0,2.91]
[1727453227780,0.37128,2692.4,2692.0,2.91]
[1727453228082,1.71432,2692.7,2692.3,3.28129]
[1727453228484,3.7144,2692.6,2692.3,3.28129]
[1727453229001,0.37128,2692.4,2692.3,2.91]
[1727453229393,4.08568,2692.4,2692.3,2.91]
[1727453230485,0.7862,2692.7,2692.3,2.91]
[1727453230794,0.37126,2692.6,2692.5,2.91]
[1727453230994,0.37126,2692.6,2692.5,3.28127]
[1727453231185,4.08486,2692.6,2692.5,3.28127]
[1727453231387,4.08486,2692.6,2692.5,2.91]
[1727453231991,4.08486,2692.6,2692.5,3.28127]
[1727453232399,4.08486,2692.6,2692.5,2.91]
[1727453232587,0.37128,2692.4,2692.3,3.28129]
[1727453232788,1.71432,2692.7,2692.3,3.28129]
[1727453233095,0.37126,2692.6,2692.5,3.28126]
[1727453233304,1.15745,2692.7,2692.5,3.28126]
[1727453233694,1.15745,2692.7,2692.5,2.91]
[1727453233889,1.15745,2692.7,2692.5,3.28126]
[1727453233890,0.37125,2692.6,2692.5,3.28126]
[1727453234087,4.87105,2692.7,2692.5,3.28125]
[1727453234400,4.87105,2692.7,2692.6,0.37125]
[1727453234595,0.37125,2692.6,2692.5,2.91]
[1727453234790,4.08485,2692.6,2692.5,2.91]
[1727453234987,0.37128,2692.4,2692.3,2.91]
[1727453236095,0.37128,2692.4,2692.3,3.28129]
[1727453236295,0.7862,2692.7,2692.3,2.91]
[1727453236598,0.7862,2692.7,2692.5,2.91]
[1727453236797,0.7862,2692.7,2692.6,0.37125]
[1727453237000,1.15744,2692.7,2692.6,0.37125]
[1727453237203,4.87104,2692.7,2692.5,2.91]
[1727453237497,4.87104,2692.7,2692.6,0.37125]
[1727453237498,1.15744,2692.7,2692.6,0.37125]
[1727453237697,1.15744,2692.7,2692.5,3.28126]
[1727453237698,0.37125,2692.6,2692.5,3.28126]
[1727453237893,1.71432,2692.7,2692.3,2.91]
[1727453238089,0.37128,2692.4,2692.3,2.91]
[1727453238296,0.37128,2692.4,2692.3,3.28129]
[1727453238801,0.37128,2692.4,2691.9,3.2078]
[1727453238802,1.29963,2692.1,2691.9,3.2078]
[1727453239008,10.50743,2692.1,2691.5,2.91]
[1727453239193,14.22183,2692.1,2691.5,2.91]
[1727453239396,15.37213,2692.1,2691.6,0.37139]
[1727453239598,0.3714,2691.5,2691.4,0.087]
[1727453239794,0.37142,2691.4,2691.2,6.48923]
[1727453240493,0.37142,2691.4,2691.3,0.37143]
[1727453240697,0.3902,2691.6,2691.2,3.2078]
[1727453240887,0.37143,2691.4,2691.2,0.37144]
[1727453241089,0.3902,2691.6,2691.1,0.404]
[1727453241293,4.13632,2691.5,2691.1,0.77545]
[1727453241595,3.2078,2691.5,2691.0,2.91]
[1727453241796,4.13632,2691.5,2690.9,3.2078]
[1727453242101,0.37147,2691.0,2690.9,3.2078]
[1727453242602,0.37147,2691.1,2690.9,3.57928]
[1727453242800,0.37147,2691.1,2691.0,2.91]
[1727453243105,3.2078,2691.5,2691.0,2.91]
[1727453243292,0.37141,2691.5,2691.3,3.28143]
[1727453243495,1.1327,2691.6,2691.4,0.37141]
[1727453243895,4.4765,2691.6,2691.4,0.37142]
[1727453244095,4.8479,2691.6,2691.4,0.37142]
[1727453245098,1.1327,2691.6,2691.4,0.37142]
[1727453245300,3.2078,2692.0,2691.9,0.37135]
[1727453245505,3.5948,2692.4,2691.9,3.28134]
[1727453245699,0.37133,2692.1,2691.9,3.28134]
[1727453245898,0.37133,2692.1,2692.0,0.37134]
[1727453246096,0.37132,2692.2,2692.1,0.37132]
[1727453246404,0.37132,2692.2,2692.0,0.74563]
[1727453246600,3.5948,2692.4,2692.0,0.74563]
[1727453247204,0.37132,2692.1,2692.0,0.74563]
[1727453247699,0.37129,2692.3,2692.0,0.3743]
[1727453247997,3.5948,2692.4,2692.0,0.74563]
[1727453248205,0.37132,2692.1,2692.0,0.74563]
[1727453249697,0.37132,2692.1,2692.0,0.3743]
[1727453249900,0.37132,2692.1,2692.0,0.74564]
[1727453250303,0.37132,2692.1,2692.0,0.3743]
[1727453251308,0.37132,2692.1,2692.0,0.74564]
[1727453252607,0.37132,2692.1,2692.0,0.3743]
[1727453253209,0.37132,2692.1,2692.0,0.74564]
[1727453253907,4.52302,2692.4,2692.0,0.3743]
[1727453254203,4.52302,2692.4,2692.0,0.74562]
[1727453254204,0.37132,2692.1,2692.0,0.74562]
[1727453254803,0.37134,2692.0,2691.9,3.28134]
[1727453255305,0.37133,2692.1,2692.0,0.37133]
[1727453255905,4.08573,2692.1,2692.0,0.37133]
[1727453256410,0.37134,2692.0,2691.9,3.28134]
[1727453256601,0.37136,2691.8,2691.4,3.2078]
[1727453256804,0.37143,2691.4,2691.3,0.37143]
[1727453257302,0.7394,2691.9,2691.3,0.37143]
[1727453257303,1.45720594,2692.3,2691.3,9.8338]
[1727453257504,0.37136,2691.8,2691.7,3.28138]
[1727453258006,0.37136,2691.8,2691.7,2.91]
[1727453258712,0.37143,2691.3,2691.2,0.37144]
[1727453259099,0.37147,2691.1,2691.0,0.37147]
[1727453259407,0.92859,2691.3,2690.9,3.2841]
[1727453259611,0.37147,2691.1,2691.0,0.37147]
[1727453259805,0.3702,2691.2,2691.0,0.37147]
[1727453259806,0.74166,2691.2,2691.0,0.37147]
[1727453260008,0.74165,2691.2,2691.0,0.37147]
[1727453261511,0.74165,2691.2,2690.9,0.3741]
[1727453261512,4.08747,2691.1,2690.9,0.37148]
[1727453261713,0.37147,2691.1,2690.9,0.37148]
[1727453262011,4.08747,2691.1,2690.9,0.37148]
[1727453262207,0.37148,2691.0,2690.8,0.37149]
[1727453262411,0.37148,2691.0,2690.8,0.3715]
[1727453262607,0.37148,2691.0,2690.9,0.37149]
[1727453262809,0.37148,2691.0,2690.8,0.37149]
[1727453263011,0.37147,2691.1,2690.9,0.37149]
[1727453263316,0.37147,2691.1,2690.7,6.5202]
[1727453263317,0.37149,2691.0,2690.7,6.5202]
[1727453263511,0.37149,2691.0,2690.8,0.37149]
[1727453263718,0.37149,2691.0,2690.9,0.37149]
[1727453264320,3.716,2691.0,2690.9,0.37149]
[1727453264613,0.37147,2691.1,2690.9,0.37149]
[1727453264813,0.37147,2691.1,2690.7,6.5202]
[1727453265012,0.37146,2691.2,2690.9,2.91]
[1727453265219,6.15875642,2691.4,2690.9,2.91]
[1727453265220,0.37146,2691.1,2691.0,0.37147]
[1727453266215,0.37146,2691.1,2690.9,3.28148]
[1727453266808,4.13637,2691.4,2690.9,2.91]
[1727453267122,0.37146,2691.1,2691.0,0.37147]
[1727453267322,0.37146,2691.1,2690.9,2.91]
[1727453267511,0.37145,2691.2,2691.0,0.37147]
[1727453268018,0.37145,2691.2,2691.1,0.3935]
[1727453269524,0.37148,2691.0,2690.8,0.3715]
[1727453270023,0.37148,2691.0,2690.9,0.37149]
[1727453270524,0.37148,2691.0,2690.8,0.37149]
[1727453271018,0.37149,2690.9,2690.8,0.37149]
[1727453271523,1.30206,2691.1,2690.7,6.5202]
[1727453271719,0.37149,2690.9,2690.8,0.37149]
[1727453272229,0.3715,2690.8,2690.7,0.77391]
[1727453272417,0.3715,2690.9,2690.8,0.3715]
[1727453273922,4.50987,2691.1,2690.8,0.3715]
[1727453274120,0.37149,2690.9,2690.8,0.3715]
[1727453274321,1.3111,2691.0,2690.7,0.37151]
[1727453274527,0.3715,2690.9,2690.8,0.3715]
[1727453277826,1.3111,2691.0,2690.6,0.3697]
[1727453278025,0.37152,2690.7,2690.6,0.3697]
[1727453278222,0.92887,2690.5,2690.2,0.74847]
[1727453278430,0.37157,2690.3,2690.2,0.37157]
[1727453279220,0.37158,2690.2,2690.1,0.4063]
[1727453279420,0.37158,2690.2,2690.1,0.7779]
[1727453280230,3.2078,2690.8,2690.1,3.3163]
[1727453280421,0.087,2691.3,2690.7,6.1178]
[1727453280624,0.087,2692.0,2691.9,0.37135]
[1727453280821,0.4067,2692.6,2691.9,6.1178]
[1727453281026,0.37127,2692.5,2692.1,0.37132]
[1727453281223,0.77796,2692.6,2692.5,3.2078]
[1727453281624,4.49156,2692.6,2692.5,3.2078]
[1727453283032,4.1203,2692.6,2692.5,3.2078]
[1727453284942,0.4067,2692.6,2692.5,3.2078]
[1727453285136,0.77795,2692.6,2692.5,3.2078]
[1727453285433,4.1203,2692.6,2692.5,3.2078]
[1727453285631,0.4067,2692.6,2692.5,3.2078]
[1727453286228,0.4067,2692.6,2692.5,6.48907]
[1727453286830,0.4067,2692.6,2692.5,6.1178]
[1727453287339,0.4067,2692.6,2692.5,6.48907]
[1727453287832,0.4067,2692.6,2692.5,6.1178]
[1727453289538,0.4067,2692.6,2692.5,6.48907]
[1727453290034,0.7739,2692.9,2692.5,6.1178]
[1727453290235,0.7739,2692.9,2692.8,6.1178]
[1727453290236,0.4045,2692.9,2692.8,6.1178]
[1727453293142,0.4045,2692.9,2692.8,6.48903]
[1727453293438,0.4045,2692.9,2692.8,6.1178]
[1727453293640,0.4045,2692.9,2692.8,6.48903]
[1727453294343,0.3902,2693.1,2693.0,0.3712]
[1727453294536,0.3902,2693.1,2693.0,3.2812]
[1727453301944,0.3902,2693.1,2693.0,2.91]
[1727453302244,0.3902,2693.1,2692.9,0.37121]
[1727453302245,0.3712,2693.0,2692.9,2.91]
[1727453302439,0.7648,2693.0,2692.9,2.91]
[1727453302943,0.7648,2693.0,2692.8,3.57902]
[1727453302944,11.5962,2693.0,2692.5,3.2352]
[1727453303241,0.37129,2692.3,2692.2,3.2078]
[1727453303435,1.29953,2692.3,2692.2,3.2078]
[1727453304054,0.92813,2692.7,2692.3,0.37129]
[1727453304345,0.37128,2692.5,2692.3,0.37129]
[1727453305048,0.37129,2692.3,2692.2,6.1178]
[1727453305438,5.01393,2692.3,2692.2,3.2078]
[1727453305946,11.94217,2692.3,2692.2,1.9806]
[1727453306139,11.94217,2692.3,2691.9,3.2078]
[1727453306140,0.37134,2692.0,2691.9,3.2078]
[1727453307342,4.08574,2692.0,2691.9,3.2078]
[1727453307941,0.37127,2692.5,2692.2,0.37131]
[1727453308144,0.37127,2692.5,2692.3,2.91]
[1727453308344,0.37127,2692.5,2692.3,3.28129]
[1727453308540,0.37127,2692.5,2692.3,2.91]
[1727453309452,0.74086,2692.6,2692.3,3.28129]
[1727453309848,0.37127,2692.5,2692.3,3.28129]
[1727453310043,0.3696,2692.6,2692.3,2.91]
[1727453310247,0.74087,2692.6,2692.3,3.28129]
[1727453310455,0.3696,2692.6,2692.3,2.91]
[1727453311040,0.37127,2692.5,2692.3,2.91]
[1727453311341,0.087,2693.4,2692.5,0.92816]
[1727453311541,0.74246,2693.3,2693.1,3.28118]
[1727453312354,0.3713,2693.3,2693.1,3.28118]
[1727453312548,0.74246,2693.3,2693.1,3.28118]
[1727453313650,0.3713,2693.3,2693.1,3.28118]
[1727453313850,0.74246,2693.3,2693.1,3.28118]
[1727453314354,0.3713,2693.3,2693.2,0.37117]
[1727453314653,0.74246,2693.3,2693.1,3.28118]
[1727453315050,0.3713,2693.3,2693.1,2.91]
[1727453315256,0.74246,2693.3,2693.2,0.37117]
[1727453315452,0.74246,2693.3,2693.1,3.28118]
[1727453315853,0.3696,2693.4,2693.2,3.57896]
[1727453316046,0.3696,2693.4,2693.3,0.37116]
[1727453316765,0.74074,2693.4,2693.2,3.57896]
[1727453317052,0.37116,2693.3,2693.2,3.2078]
[1727453320145,4.08396,2693.3,2693.2,3.2078]
[1727453320353,0.37116,2693.3,2693.2,3.2078]
[1727453321253,0.37116,2693.3,2693.2,3.57897]
[1727453321554,0.37116,2693.3,2693.2,3.2078]
[1727453322355,0.37116,2693.3,2693.2,3.57897]
[1727453322556,0.408,2693.6,2693.2,3.2078]
[1727453322749,0.408,2693.6,2693.3,0.37115]